Cogmind - Beta 12 @@@ ROGUE MODE // 2023.10.29 @ 00:47:34 Player: gallo Result: Destroyed by exploding Fusion Modulator Performance ------------- Evolutions (1) 500 Regions Visited (3) 600 Robots Destroyed (27) 135 Value Destroyed (744) 744 Prototype IDs (0) 0 Alien Tech Used (0) 0 Bonus (-18) -18 TOTAL SCORE: 1961 Bonus ------- Friendly Fire -18 Cogmind --------- Core Integrity 0/400 Matter 240/300 Energy 265/265 System Corruption 12% Temperature Cool (24) Movement Walking (190) Ox1 Location -9/Materials Parts ------- > --- POWER (2) -------- Reinforced Ion Engine > --- PROPULSION (2) --- Aluminum Leg Aluminum Leg > --- UTILITY (2) ------ Large Storage Unit > --- WEAPON (3) ------- Light Assault Rifle Maul > --- INVENTORY (15) --- Flight Unit Heat Sink Improved Targeting Computer Tractor Beam Peak State ------------ > --- POWER ------------ Ion Engine Reinforced Ion Engine > --- PROPULSION ------- Aluminum Leg Aluminum Leg > --- UTILITY ---------- Large Storage Unit Backup Plating I > --- WEAPON ----------- Small Laser Beam Rifle Heavy Hammer > --- INVENTORY -------- Flight Unit Heat Sink Improved Targeting Computer Tractor Beam Hammer [Rating: 12] Favorites ----------- Power Ion Engine Engine Ion Engine Propulsion Wheel Leg Aluminum Leg Wheel Wheel Flight Unit Flight Unit Utility Large Storage Unit Device ECM Suite Storage Large Storage Unit Processor Improved Targeting Computer Protection Backup Plating I Weapon Beam Cannon Energy Gun Medium Laser Energy Cannon Beam Cannon Ballistic Gun Heavy Assault Rifle Launcher Grenade Launcher Impact Weapon Heavy Hammer Slashing Weapon Mining Claw Build | -11 -10 -10 -9 ------- Run | Jun Mat Min Mat Slots Evolved 2 | . . . 2 Power 1 | . . . 1 Propulsion . | . . . . Utility . | . . . . Weapon 1 | . . . 1 Parts Attached 38 | 6 8 1 23 Power 4 | 1 1 . 2 Engine 4 | 1 1 . 2 Core . | . . . . Reactor . | . . . . Propulsion 14 | 2 . 1 11 Treads . | . . . . Leg 9 | . . . 9 Wheel 3 | 2 . 1 . Hover . | . . . . Flight 2 | . . . 2 Utility 6 | 1 3 . 2 Device 4 | 1 2 . 1 Storage 1 | . 1 . . Processor 1 | . . . 1 Hackware . | . . . . Protection . | . . . . Artifact . | . . . . Weapon 14 | 2 4 . 8 Energy Gun 4 | 1 . . 3 Energy Cannon 1 | . 1 . . Ballistic Gun 3 | 1 . . 2 Ballistic Cannon . | . . . . Launcher 1 | . 1 . . Special Weapon . | . . . . Impact Weapon 4 | . 1 . 3 Slashing Weapon 1 | . 1 . . Piercing Weapon . | . . . . Special Melee Weapon . | . . . . Unidentified Prototypes . | . . . . Parts Lost 8 | . 2 . 6 Power 3 | . 1 . 2 Propulsion 2 | . 1 . 1 Utility 2 | . . . 2 Weapon 1 | . . . 1 Highest Loss Streak 2 | . 2 . 2 To Critical Strikes . | . . . . Average Slot Usage (%) 75 | . 90 90 63 Engine 12 | . 12 14 11 Leg 8 | . . . 14 Wheel 9 | . 21 18 1 Device 9 | . 22 14 2 Storage 10 | . 4 14 11 Processor 2 | . . . 4 Protection 1 | . . . 3 Energy Gun 4 | . 11 . 3 Energy Cannon 4 | . 2 14 1 Ballistic Gun 2 | . 1 . 4 Launcher 3 | . 2 14 . Impact Weapon 3 | . 6 . 4 Naked Turns . | . . . . Heaviest Build 43 | 10 31 31 43 Greatest Support 20 | 20 20 20 20 Greatest Overweight (x) 9 | 1 3 3 9 Average Overweight (x) 1 | . . 2 2 Largest Inventory Capacity 15 | 5 15 15 15 Average Capacity 13 | 5 8 15 15 Most Carried 8 | 1 8 2 8 Average Carried 3 | . 3 1 4 Final Capacity 15 | 5 15 15 15 Final Carried 4 | 1 1 1 4 Class Distribution -------------------- 90% | Mutant 9% | Scavenger-Mutant Dominant Class ---------------- Mutant | -10/Materials Mutant | -10/Mines Mutant | -9/Materials Resources | -11 -10 -10 -9 ----------- Run | Jun Mat Min Mat Matter Collected 745 | 246 75 80 344 Remotely . | . . . . Salvage Created 966 | 43 283 56 584 Parts 53 | 3 11 5 34 Haulers Intercepted . | . . . . Recyclers Shooed 1 | . . . 1 Parts Field Recycled . | . . . . Retrieved Matter . | . . . . Parts Self-Destructed . | . . . . Prevented . | . . . . Kills | -11 -10 -10 -9 ------- Run | Jun Mat Min Mat Combat Hostiles Destroyed 20 | 1 2 2 15 Melee 5 | . 2 . 3 Guns 10 | 1 . . 9 Cannons 1 | . . 1 . AOE 1 | . . 1 . Classes Destroyed 7 | 1 2 . 4 Builder 3 | . 1 1 1 Recycler 2 | . 2 . . Watcher 2 | . . . 2 Swarmer 4 | . . . 4 Grunt 13 | 1 2 2 8 Brawler 2 | . . . 2 Sentry 1 | . . . 1 Best Kill Streak 5 | 1 3 2 5 Combat Bots Only 5 | 1 2 2 5 Max Kills in Single Turn 1 | 1 1 1 1 Gunslinging . | . . . . Exploded 1 | . . 1 . Melee 1 | . 1 . 1 Uniques/NPCs Destroyed . | . . . . Combat | -11 -10 -10 -9 -------- Run | Jun Mat Min Mat Damage Taken 1518 | 22 239 45 1212 Core 556 | . 106 13 437 Absorbed by Shields . | . . . . Core Remaining (%) 76 | 100 . 52 . Volleys Fired 82 | 2 13 8 59 Largest 2 | 2 2 2 1 Hottest 90 | 70 90 90 56 Shots Fired 86 | 4 14 11 57 Gun 71 | 4 10 . 57 Cannon 9 | . 3 6 . Launcher 6 | . 1 5 . Special . | . . . . Kinetic 42 | 2 . . 40 Thermal 38 | 2 13 6 17 Explosive 6 | . 1 5 . Electromagnetic . | . . . . Robot Hit Streak 8 | 1 3 7 8 Robot Miss Streak 5 | 1 5 . 2 Penetration Max . | . . . . Secondary Targets . | . . . . Shots Hit Robots 63 | 2 10 7 44 Core Hits 33 | 2 8 7 16 Critical Kills 1 | . . . 1 Critical Parts Destroyed 6 | . . . 6 Critical Strikes 8 | . . . 8 Burn 1 | . . . 1 Destroy 1 | . . . 1 Smash 6 | . . . 6 Melee Attacks 37 | . 15 . 22 Impact 36 | . 14 . 22 Slashing 1 | . 1 . . Piercing . | . . . . Sneak Attacks 4 | . 3 . 1 Combat Hostiles . | . . . . Follow-up Attacks . | . . . . Damage Inflicted 1779 | 25 336 372 1046 Guns 519 | 25 48 . 446 Cannons 86 | . 17 69 . Explosions 328 | . 25 303 . Melee 788 | . 246 . 542 Ramming 58 | . . . 58 Kinetic 331 | . . . 331 Thermal 463 | 25 65 258 115 Explosive 114 | . . 114 . Electromagnetic 25 | . 25 . . Impact 743 | . 201 . 542 Slashing 45 | . 45 . . Piercing . | . . . . Highest Corruption 12 | . 1 1 12 Average Corruption 6 | . 1 1 9 Corruption Purged . | . . . . Corruption Blocked . | . . . . Effects 52 | . 2 9 41 Message Errors 10 | . . 1 9 Matter Fused 10 | . . 2 8 Heat Flow Errors 10 | . 1 2 7 Energy Discharges 7 | . . 1 6 Parts Fused 1 | . . . 1 Data Loss (minor) 8 | . 1 2 5 Data Loss (major) 2 | . . . 2 Misfires 1 | . . 1 . Misdirections 1 | . . . 1 Weapon Failures 2 | . . . 2 Overload Shots . | . . . . Overflow Damage 388 | . 51 18 319 Projectiles . | . . . . Explosions 18 | . . 18 . Melee 370 | . 51 . 319 Knockbacks 2 | . . . 2 Impact 2 | . . . 2 Kinetic . | . . . . Secondary . | . . . . Self-Inflicted Damage 123 | . 73 . 50 Shots 3 | . 3 . . Rammed . | . . . . Targets Rammed 1 | . . . 1 Kicked 1 | . . . 1 Crushed . | . . . . Highest Temperature 231 | 4 101 210 231 Average Temperature 61 | 3 24 81 61 Received Heat Transfer 417 | 12 114 27 264 Siege Activations . | . . . . Robots Corrupted . | . . . . Combat Hostiles . | . . . . Parts Fried 4 | . . . 4 Impact Corruptions 13 | . 1 . 12 Robots Melted . | . . . . Combat Hostiles . | . . . . Parts Melted 1 | . . 1 . Heat Transferred 954 | 74 185 348 347 Parts Sabotaged . | . . . . Parts Stolen . | . . . . Parts Stripped . | . . . . Power Chain Reactions 1 | . 1 . . Missiles Intercepted . | . . . . Alert | -11 -10 -10 -9 ------- Run | Jun Mat Min Mat Peak Influence 247 | 20 136 178 247 Initial 13 | . 13 . . Average 79 | 2 59 69 95 Maximum Alert Level 1 | . . . 1 Low Security (%) 93 | 100 100 100 88 Level 1 6 | . . . 11 Level 2 . | . . . . Level 3 . | . . . . Level 4 . | . . . . Level 5 . | . . . . High Security . | . . . . Max Security . | . . . . Squads Dispatched 4 | . 1 . 3 Investigation 1 | . . . 1 Extermination . | . . . . Reinforcement 3 | . 1 . 2 Assault . | . . . . Garrison . | . . . . Intercept . | . . . . Searches Triggered . | . . . . Construction Impeded . | . . . . Haulers Reinforced . | . . . . Active Scanning Responses . | . . . . Cargo Convoy Interrupts . | . . . . Stealth | -11 -10 -10 -9 --------- Run | Jun Mat Min Mat Distress Signals 2 | . . . 2 Communications Jammed . | . . . . Distress Signals . | . . . . Times Spotted 39 | 1 9 2 27 Peak Tracking Total 5 | 1 3 2 5 Tactical Retreats 2 | . 1 . 1 Traps | -11 -10 -10 -9 ------- Run | Jun Mat Min Mat Traps Triggered 1 | . . . 1 Indirectly . | . . . . Trap Hack Attempts . | . . . . Triggered . | . . . . Disarmed . | . . . . Reprogrammed . | . . . . Reused . | . . . . Traps Extracted . | . . . . Installed . | . . . . Triggered . | . . . . Machines | -11 -10 -10 -9 ---------- Run | Jun Mat Min Mat Machines Disabled 6 | . 1 5 . Max in Single Turn 4 | . 1 4 . Machines Repaired . | . . . . Machines Sabotaged . | . . . . Overloaded Fab Kills . | . . . . Hacking | -11 -10 -10 -9 --------- Run | Jun Mat Min Mat Machines Accessed 3 | . 1 . 2 Terminals 1 | . 1 . . Fabricators . | . . . . Repair Stations 1 | . . . 1 Recycling Units . | . . . . Scanalyzers 1 | . . . 1 Garrison Access . | . . . . Total Hacks 7 | . 2 . 5 Successful 4 | . 2 . 2 Failed 3 | . . . 3 Catastrophic 1 | . . . 1 Database Lockouts . | . . . . Manual 1 | . 1 . . Terminals 2 | . 2 . . Fabricators . | . . . . Repair Stations 4 | . . . 4 Recycling Units . | . . . . Scanalyzers 1 | . . . 1 Garrison Access . | . . . . Terminal Hacks 2 | . 2 . . Alert Level 1 | . 1 . . Hauler Manifests 1 | . 1 . . Fabricator Hacks . | . . . . Repair Station Hacks 1 | . . . 1 Refit 1 | . . . 1 Recycling Unit Hacks . | . . . . Scanalyzer 1 | . . . 1 Insert Component 1 | . . . 1 Garrison Access Hacks . | . . . . Unauthorized Hacks . | . . . . Terminals . | . . . . Fabricators . | . . . . Repair Stations . | . . . . Recycling Units . | . . . . Scanalyzers . | . . . . Garrison Access . | . . . . Data Cores Recovered . | . . . . Used . | . . . . Hacking Detections 2 | . 1 . 1 Full Trace Events 1 | . . . 1 Feedback Events . | . . . . Feedback Blocked . | . . . . Robot Schematics Acquired . | . . . . Robots Built . | . . . . Authchips . | . . . . Time . | . . . . Total Robot Build Rating . | . . . . Part Schematics Acquired . | . . . . Parts Built . | . . . . Authchips . | . . . . Time . | . . . . Total Part Build Rating . | . . . . Parts Repaired . | . . . . Time . | . . . . Parts Recycled . | . . . . Recycled Matter . | . . . . Retrieved Matter . | . . . . Retrieved Components . | . . . . Parts Scanalyzed . | . . . . Part Schematics Acquired . | . . . . Parts Damaged . | . . . . Bothacking | -11 -10 -10 -9 ------------ Run | Jun Mat Min Mat Used RIF Installer . | . . . . Robots Hacked . | . . . . Non-combat . | . . . . Combat . | . . . . Robot Hacks Applied . | . . . . Relay Couplers Released . | . . . . Fabnet Peak Effective % . | . . . . Robots Rewired . | . . . . Allies Hacked . | . . . . Hacks Repelled . | . . . . Allies | -11 -10 -10 -9 -------- Run | Jun Mat Min Mat Total Allies . | . . . . Largest Group . | . . . . Highest-Rated Group . | . . . . Highest-Rated Ally . | . . . . Total Orders . | . . . . Ally Attacks . | . . . . Total Damage . | . . . . Kills . | . . . . Allies Corrupted . | . . . . Allies Melted . | . . . . Intel | -11 -10 -10 -9 ------- Run | Jun Mat Min Mat Robot Analysis Total . | . . . . Derelict Logs Recovered 1 | . . 1 . Drone Launches . | . . . . Drone Recoveries . | . . . . Exploration | -11 -10 -10 -9 ------------- Run | Jun Mat Min Mat Turns Passed 2362 | 104 447 513 1298 Spaces Moved 1392 | 122 396 438 436 Core 140 | 66 . . 74 Treads . | . . . . Legs 307 | . . . 307 Wheels 945 | 56 396 438 55 Hover . | . . . . Flight . | . . . . Fastest Speed 50 | 50 80 95 95 Average Speed 135 | 72 88 112 217 Slowest Speed 500 | 100 125 125 500 Overloaded Moves . | . . . . Propulsion Burnouts . | . . . . Robots Hopped . | . . . . Cave-ins Triggered . | . . . . Exploration Rate (%) 35 | 6 49 55 31 Regions Visited 3 Branch Regions 1 Pre-discovered Areas 1 | . . 1 . Known Exits Taken . | . . . . Unknown Exits Taken 3 | 1 1 1 . Scrap Searched . | . . . . Spaces Dug 13 | . 7 4 2 Terrain Destroyed 72 | . 15 55 2 Melee 9 | . 7 . 2 Projectile . | . . . . AOE 63 | . 8 55 . Terrain Rammed 19 | . . . 19 Walls Destroyed . | . . . . Machines Disabled . | . . . . Actions | -11 -10 -10 -9 --------- Run | Jun Mat Min Mat Total 1661 | 130 455 447 629 Wait 32 | . . . 32 Move 1389 | 121 395 437 436 Hop . | . . . . Pick Up 31 | 1 12 1 17 Fast Attach 11 | 6 1 . 4 Attach 22 | . 5 1 16 Detach 6 | . 1 . 5 Swap 5 | . 2 . 3 Drop 26 | . 11 . 15 Fire 82 | 2 13 8 59 Melee 37 | . 15 . 22 Ram 19 | . . . 19 Kick 1 | . . . 1 Crush . | . . . . Escape Stasis . | . . . . Rewire . | . . . . Trap . | . . . . Miscellaneous . | . . . . Route ------- -11/Junkyard -10/Materials -10/Mines -9/Materials (discovered 1 exit: Mat) History --------- Turn | Location | Event 2 | -11/Junkyard | Met Revision 17 83 | -11/Junkyard | Discovered new exit (range 8) 105 | -11/Junkyard | Entered Materials 315 | -10/Materials | Build established: Mutant 491 | -10/Materials | Discovered new exit (range 13) 552 | -10/Materials | Entered Mines 566 | -10/Mines | Met a Derelict bent on vengeance 757 | -10/Mines | Learned location of Storage (-7) 1036 | -10/Mines | Discovered new exit (range 9) 1041 | -10/Mines | Learned location of 1 exit from Materials 1065 | -10/Mines | Entered Materials 1065 | -9/Materials | Evolved 2 slots: Power x1, Weapon x1 1066 | -9/Materials | Identified exit to Materials 1201 | -9/Materials | System corruption reached 10% 1432 | -9/Materials | Core integrity fell below 50% 2074 | -9/Materials | Core integrity fell below 20% 2363 | -9/Materials | Destroyed by exploding Fusion Modulator Last Messages --------------- 02289_ K-01 Serf cleans the Electrolysis Chamber. 02295_ 4:QGBI NWT5N9MJFTGJTEK,BJ28VZ 02295_ K-01 Serf cleans the Electrolysis Chamber. 02303_ Acquired Maul. 02312_ Acquired Lgt. Assault Rifle. 02313_ Dropped Hvy. Hammer. 02315_ Dropped Beam Rifle. Only a single melee weapon may be active at a time, Maul automatically deactivated. (Secondary inactive melee weapons have a chance to conduct follow-up attacks, see the manual.) 02316_ Dropped Sml. Laser. 02318_ Dropped Hammer. 02346_ System corrupted: Energy discharge (-120). 02348_ K-01 Serf cleans the Fusion Modulator. 02363_ Fusion Modulator explodes. 02363_ G-34 Mercenary destroyed. 02363_ Fusion Modulator explodes. 02363_ K-01 Serf destroyed. 02363_ Backup Plating I destroyed. 02363_ Ion Engine destroyed. Map ----- +----------------------------------------------------+ | | | | | | | | | | | ?????????????????????????????????????????????????? | | ??????????????????????????????????################ | | ??????????????????????????????????# | | ??????????????????????????#######?# | | ??????????????????????????# #?# | | ??????????????????????????# ### | | ??????????????????????????# | | ??????????????????????????# ######## | | ??????????????????????????# #??????# | | ??????????????????????????### ###?######% | | ????????????????????????????# #???#%% | | ???????????????????????????##+##### ############## | | ???????????????????????????# [/# ###??????##### | | ???????????????????????????# /[# #?######## | | ???????????????????????????# """ # #?# # | | ???????????????????????????# """ # #?# """# """ | | ???????????????????????????# """ # #?#!/ R"# """ | | ????????????????????????###; r ###/ """# """ | | ??????????????????????###;;;;;;;;;# ## # """ | | ??????????????????????# ;;# ### %%% " | | ??????????????????????# @ ; ###+######+# | | ??????????????????????# %; %%% | | ??????????????????????# *; T | | ??????????????????????# ; = | | ??????????????????????# ; ############ | | ??????????????????????# ;; ##??????????? | | ??????????????????????# ;; #???????????? | | ??????????????????????#####;;;;;##u #???????????? | | ???????????????????????????####### #???????????? | | ?????????????????????????????????# #???????????? | | ?????????????????????????????????# #???????????? | | ?????????????????????????????????# #???????????? | | ????????????????????????????????? #???????????? | | ????????????????????????????????? +???????????? | | ???????????????????????????????? #???????????? | | ?????????????????????????????????# #???????????? | | ??????????????????????????????????? #???????????? | | ?????????????????????????????????????????????????? | | ?????????????????????????????????????????????????? | | ?????????????????????????????????????????????????? | | ?????????????????????????????????????????????????? | | ?????????????????????????????????????????????????? | | ?????????????????????????????????????????????????? | | ?????????????????????????????????????????????????? | | ?????????????????????????????????????????????????? | +----------------------------------------------------+ Best States ------------- Heat Dissipation 35 Energy Generation 17 Energy Capacity 415 Matter Stores 300 Matter Capacity 300 Sight Range 16 Robot Scan Range 14 Terrain Scan Density 10 ECM Strength 1 Armor Coverage 80 Evasion (%) 50 Targeting Accuracy 6 Item Schematics ----------------- None Robot Schematics ------------------ None Fabricated ------------ Nothing Alien Tech Used ----------------- None Achievements -------------- Shopping List System Compromised Uninvited Guest Challenges ------------ None Game ------ Seed TrapIonRigger Manual? 0 Play Time 00:29:28 Cumulative 1.3 hours Start 2023.10.28 @ 21:48:12 End 2023.10.29 @ 00:47:34 Sessions 4 Manual Loads 0 Difficulty Rogue Special Mode None Game No. 2 Rogue 2 Adventurer 0 Explorer 0 Win Type - Total 0 Types 0/0/0/0/0/0/0/0/0 Lore% 0 Gallery% 3 Achievement% 3 Wizard Run 0 Options --------- ASCII 0 Keyboard 0 Movement Arrows Keybinds 0 Fullscreen 1 Font 18/Smallcaps Map View 76x50 Tactical HUD 1 Map Filters NONE Filters NONE Steam 1 RUN: 6e28ad5b-66d9-44ae-a914-8def57831cb3